Cogmind - Beta 14 @@@ ROGUE MODE // 2024.10.18 @ 23:23:41 Player: Blanco! Result: Destroyed by H-55 Commando with Gauss Rifle Performance ------------- Evolutions (3) 1500 Regions Visited (4) 800 Robots Destroyed (85) 425 Value Destroyed (1877) 1877 Prototype IDs (0) 0 Alien Tech Used (0) 0 Bonus (333) 333 TOTAL SCORE: 4935 Bonus ------- Pacifist 200 High Alert Combat Kills 133 Cogmind --------- Core Integrity 0/700 Matter 17/300 Energy 300/300 System Corruption 21% Temperature Cool (27) Movement Core (1400) Ox27 Location -7/Factory Parts ------- > --- POWER (2) -------- (None) > --- PROPULSION (2) --- (None) > --- UTILITY (5) ------ Huge Storage Unit Compact Battery Launcher Guidance Computer Launcher Guidance Computer > --- WEAPON (4) ------- Hammer > --- INVENTORY (25) --- Light Nuclear Core Light Nuclear Core Light Treads Titanium Leg Titanium Leg Launcher Guidance Computer Launcher Guidance Computer Improved Recalibrator Light Cannon Light Cannon Improved Light Cannon Heavy Missile Launcher Peak State ------------ > --- POWER ------------ Improved Ion Engine Light Deuterium Engine > --- PROPULSION ------- Armored Treads Armored Treads > --- UTILITY ---------- Huge Storage Unit Compact Battery Launcher Guidance Computer Launcher Guidance Computer Improved Light Armor Plating > --- WEAPON ----------- Arc Projector Rocket Launcher Hammer Hammer > --- INVENTORY -------- Light Nuclear Core Light Nuclear Core Reinforced Deuterium Engine Light Treads Titanium Leg Titanium Leg Launcher Guidance Computer Launcher Guidance Computer Light Cannon Light Cannon Improved Light Cannon Advanced Assault Cannon Rocket Launcher Rocket Launcher Heavy Missile Launcher Hammer Hammer [Rating: 38] Favorites ----------- Power Improved Ion Engine Engine Improved Ion Engine Propulsion Light Treads Treads Light Treads Leg Aluminum Leg Wheel Compact Wheel Hover Unit Improved Hover Unit Flight Unit Cesium-ion Thruster Utility Huge Storage Unit Device Shield Generator Storage Huge Storage Unit Processor Launcher Guidance Computer Protection Light Armor Plating Weapon Light Cannon Energy Gun EM Pulse Gun Ballistic Gun Minigun Ballistic Cannon Light Cannon Launcher Mini Grenade Launcher Impact Weapon Hammer Build | -11 -10 -9 -8 -7 ------- Run | Yrd Mat Mat Mat Fac Slots Evolved 6 | . . 2 2 2 Power 1 | . . 1 . . Propulsion . | . . . . . Utility 3 | . . 1 1 1 Weapon 2 | . . . 1 1 Parts Attached 85 | 6 3 22 25 29 Power 10 | 1 . 3 4 2 Engine 10 | 1 . 3 4 2 Core . | . . . . . Reactor . | . . . . . Propulsion 28 | 2 1 8 8 9 Treads 12 | . . 4 3 5 Leg 6 | . . 2 2 2 Wheel 6 | 2 1 1 2 . Hover 1 | . . 1 . . Flight 3 | . . . 1 2 Utility 20 | 1 1 8 5 5 Device 9 | . . 7 2 . Storage 4 | 1 1 . 1 1 Processor 2 | . . . . 2 Hackware . | . . . . . Protection 5 | . . 1 2 2 Artifact . | . . . . . Weapon 27 | 2 1 3 8 13 Energy Gun 6 | 1 1 . 2 2 Energy Cannon . | . . . . . Ballistic Gun 3 | 1 . . . 2 Ballistic Cannon 8 | . . 1 6 1 Launcher 5 | . . 1 . 4 Special Weapon . | . . . . . Impact Weapon 5 | . . 1 . 4 Slashing Weapon . | . . . . . Piercing Weapon . | . . . . . Special Melee Weapon . | . . . . . Unidentified Prototypes . | . . . . . Corrupted Parts 1 | . . . 1 . System Corruption 1 | . . . 1 . Parts Lost 50 | . . 11 20 19 Power 10 | . . 3 3 4 Propulsion 10 | . . 2 6 2 Utility 14 | . . 5 4 5 Weapon 16 | . . 1 7 8 Highest Loss Streak 17 | . . 4 17 10 To Critical Strikes . | . . . . . Average Slot Usage (%) 84 | . 83 80 85 90 Engine 13 | . 14 11 15 13 Treads 10 | . . 8 11 12 Wheel 5 | . 27 9 . . Device 8 | . . 17 6 1 Storage 13 | . 14 11 15 14 Processor 1 | . . . . 5 Protection 5 | . . 1 8 9 Energy Gun 2 | . 13 2 1 3 Ballistic Gun 2 | . 14 1 . 3 Ballistic Cannon 9 | . . 3 22 5 Launcher 2 | . . 4 . 2 Impact Weapon 7 | . . 9 1 13 Peak Build Rating 38 | 6 7 15 18 38 Average Rating 16 | 4 6 11 14 29 On Entrance 8 | . 6 7 14 17 Naked Turns . | . . . . . Heaviest Build 116 | 13 88 99 109 116 Greatest Support 40 | 32 32 40 40 40 Greatest Overweight (x) 35 | 1 5 6 21 35 Average Overweight (x) 2 | . 1 3 3 2 Largest Inventory Capacity 25 | 8 25 25 25 25 Average Capacity 24 | 7 22 25 25 25 Most Carried 21 | 5 13 20 19 21 Average Carried 15 | 2 7 18 12 18 Final Capacity 25 | 8 25 25 25 25 Final Carried 20 | 5 13 20 19 12 Class Distribution -------------------- 63% | Mutant 26% | Scavenger-Tank 10% | Scavenger-Mutant Dominant Class ---------------- Mutant | -10/Materials Mutant | -9/Materials Scavenger-Tank | -8/Materials Mutant | -7/Factory Resources | -11 -10 -9 -8 -7 ----------- Run | Yrd Mat Mat Mat Fac Matter Collected 1479 | 260 6 480 387 346 Remotely 63 | . . . 63 . Salvage Created 1703 | . . 755 259 689 Parts 102 | . . 34 18 50 Haulers Intercepted . | . . . . . Recyclers Shooed 3 | . . . . 3 Parts Field Recycled . | . . . . . Retrieved Matter . | . . . . . Parts Self-Destructed . | . . . . . Prevented . | . . . . . Kills | -11 -10 -9 -8 -7 ------- Run | Yrd Mat Mat Mat Fac Combat Hostiles Destroyed 53 | . . 27 11 15 Melee 6 | . . 2 . 4 Guns 2 | . . . 1 1 Cannons 4 | . . . 4 . AOE 34 | . . 19 5 10 Classes Destroyed 12 | . . 8 . 4 Worker 11 | . . 6 . 5 Builder 13 | . . 4 1 8 Tunneler 1 | . . 1 . . Recycler 4 | . . 2 . 2 Mechanic 1 | . . . . 1 Watcher 2 | . . 2 . . Swarmer 22 | . . 12 6 4 Grunt 19 | . . 10 3 6 Brawler 3 | . . . . 3 Sentry 7 | . . 5 2 . Programmer 1 | . . . . 1 Heavy 1 | . . . . 1 Best Kill Streak 11 | . . 8 5 11 Combat Bots Only 6 | . . 6 5 6 Max Kills in Single Turn 4 | . . 4 4 3 Gunslinging . | . . . . . Exploded 4 | . . 3 4 2 Melee 1 | . . 1 . 1 Uniques/NPCs Destroyed . | . . . . . Combat | -11 -10 -9 -8 -7 -------- Run | Yrd Mat Mat Mat Fac Hostile Shots Fired 668 | . . 159 189 320 Missed 218 | . . 43 56 119 Damage Taken 6244 | . 7 1202 1969 3066 Core 1404 | . 6 241 454 703 Absorbed by Shields 566 | . . 452 114 . Core Remaining (%) 63 | 100 97 39 17 . Volleys Fired 98 | . . 40 27 31 Largest 3 | . . 2 3 3 Hottest 105 | . . 60 105 105 Shots Fired 156 | . . 41 54 61 Gun 42 | . . 4 11 27 Cannon 54 | . . 7 41 6 Launcher 60 | . . 30 2 28 Special . | . . . . . Kinetic 65 | . . 8 41 16 Thermal . | . . . . . Explosive 60 | . . 30 2 28 Electromagnetic 31 | . . 3 11 17 Robot Hit Streak 16 | . . 12 9 16 Robot Miss Streak 4 | . . 2 2 4 Penetration Max . | . . . . . Secondary Targets . | . . . . . Shots Hit Robots 170 | . . 65 35 70 Core Hits 115 | . . 46 16 53 Critical Kills . | . . . . . Critical Parts Destroyed 11 | . . 6 1 4 Critical Strikes 12 | . . 6 2 4 Blast 1 | . . . 1 . Smash 11 | . . 6 1 4 Melee Attacks 87 | . . 49 3 35 Impact 87 | . . 49 3 35 Slashing . | . . . . . Piercing . | . . . . . Sneak Attacks 13 | . . 10 1 2 Combat Hostiles . | . . . . . Follow-up Attacks 4 | . . . . 4 Damage Inflicted 7964 | . 15 3910 999 3040 Guns 255 | . . 40 88 127 Cannons 586 | . . 81 416 89 Explosions 4784 | . . 2267 308 2209 Melee 2323 | . . 1522 186 615 Ramming 16 | . 15 . 1 . Kinetic 629 | . . 91 416 122 Thermal 462 | . . 462 . . Explosive 4322 | . . 1805 308 2209 Electromagnetic 212 | . . 30 88 94 Impact 2323 | . . 1522 186 615 Slashing . | . . . . . Piercing . | . . . . . Highest Corruption 21 | . 4 . 1 21 Average Corruption 7 | . 2 . 1 14 Corruption Purged . | . . . . . Corruption Blocked . | . . . . . Effects 48 | . 2 . 9 37 Message Errors 9 | . 1 . 1 7 Matter Fused 15 | . 1 . 2 12 Heat Flow Errors 3 | . . . . 3 Energy Discharges 4 | . . . 1 3 Parts Rejected 3 | . . . . 3 Parts Fused 1 | . . . . 1 Data Loss (minor) 3 | . . . . 3 Data Loss (major) 3 | . . . 3 . Misfires 3 | . . . 2 1 Weapon Failures 4 | . . . . 4 Overload Shots . | . . . . . Overflow Damage 1231 | . . 762 199 270 Projectiles 26 | . . 26 . . Explosions 319 | . . 185 57 77 Melee 886 | . . 551 142 193 Knockbacks 16 | . 1 7 6 2 Impact 11 | . 1 7 1 2 Kinetic 5 | . . . 5 . Secondary . | . . . . . Self-Inflicted Damage 292 | . 7 207 30 48 Shots 11 | . . 8 1 2 Rammed 5 | . 3 . 2 . Targets Rammed 5 | . 3 . 2 . Kicked . | . . . . . Crushed . | . . . . . Highest Temperature 314 | . . 14 314 234 Average Temperature 69 | . . 5 79 64 Received Heat Transfer 1812 | . . 362 1060 390 Effects 1 | . . . 1 . Energy Bleed 1 | . . . 1 . Siege Activations . | . . . . . Robots Corrupted 14 | . . 12 1 1 Combat Hostiles 7 | . . 6 1 . Parts Fried 22 | . . 18 2 2 Impact Corruptions 39 | . . 25 4 10 Robots Melted . | . . . . . Combat Hostiles . | . . . . . Parts Melted . | . . . . . Heat Transferred 350 | . . 350 . . Parts Sabotaged . | . . . . . Parts Stolen . | . . . . . Parts Stripped . | . . . . . Power Chain Reactions . | . . . . . Alert | -11 -10 -9 -8 -7 ------- Run | Yrd Mat Mat Mat Fac Peak Influence 724 | . . 724 460 250 Initial 305 | . . . 305 . Average 173 | . . 243 242 42 Maximum Alert Level 3 | . . 3 2 1 Low Security (%) 64 | 100 100 61 34 95 Level 1 15 | . . 5 39 4 Level 2 15 | . . 19 26 . Level 3 4 | . . 13 . . Level 4 . | . . . . . Level 5 . | . . . . . High Security . | . . . . . Max Security . | . . . . . Squads Dispatched 8 | . 1 3 . 4 Investigation . | . . . . . Extermination 1 | . . . . 1 Reinforcement 7 | . 1 3 . 3 Assault . | . . . . . Garrison . | . . . . . Intercept . | . . . . . Searches Triggered . | . . . . . Construction Impeded 4 | . . 3 . 1 Haulers Reinforced . | . . . . . Active Scanning Responses . | . . . . . Cargo Convoy Interrupts 1 | . . . . 1 Stealth | -11 -10 -9 -8 -7 --------- Run | Yrd Mat Mat Mat Fac Distress Signals 7 | . . 6 . 1 Communications Jammed . | . . . . . Distress Signals . | . . . . . Times Spotted 88 | . . 43 13 32 Peak Tracking Total 12 | . 1 6 6 12 Tactical Retreats 2 | . . 1 1 . Traps | -11 -10 -9 -8 -7 ------- Run | Yrd Mat Mat Mat Fac Traps Triggered 3 | . 3 . . . Indirectly . | . . . . . Trap Hack Attempts . | . . . . . Triggered . | . . . . . Disarmed . | . . . . . Reprogrammed . | . . . . . Reused . | . . . . . Traps Extracted . | . . . . . Installed . | . . . . . Triggered . | . . . . . Machines | -11 -10 -9 -8 -7 ---------- Run | Yrd Mat Mat Mat Fac Machines Disabled 5 | . . 4 1 . Max in Single Turn 3 | . . 3 1 . Machines Repaired . | . . . . . Machines Dismantled . | . . . . . Machines Sabotaged . | . . . . . Overloaded Fab Kills . | . . . . . Hacking | -11 -10 -9 -8 -7 --------- Run | Yrd Mat Mat Mat Fac Machines Accessed . | . . . . . Terminals . | . . . . . Fabricators . | . . . . . Repair Stations . | . . . . . Recycling Units . | . . . . . Scanalyzers . | . . . . . Garrison Access . | . . . . . Total Hacks . | . . . . . Successful . | . . . . . Failed . | . . . . . Catastrophic . | . . . . . Database Lockouts . | . . . . . Manual . | . . . . . Terminals . | . . . . . Fabricators . | . . . . . Repair Stations . | . . . . . Recycling Units . | . . . . . Scanalyzers . | . . . . . Garrison Access . | . . . . . Terminal Hacks . | . . . . . Fabricator Hacks . | . . . . . Repair Station Hacks . | . . . . . Recycling Unit Hacks . | . . . . . Scanalyzer . | . . . . . Garrison Access Hacks . | . . . . . Unauthorized Hacks . | . . . . . Terminals . | . . . . . Fabricators . | . . . . . Repair Stations . | . . . . . Recycling Units . | . . . . . Scanalyzers . | . . . . . Garrison Access . | . . . . . Data Cores Recovered . | . . . . . Used . | . . . . . Hacking Detections . | . . . . . Full Trace Events . | . . . . . Feedback Events . | . . . . . Feedback Blocked . | . . . . . Robot Schematics Acquired . | . . . . . Robots Built . | . . . . . Authchips . | . . . . . Time . | . . . . . Total Robot Build Rating . | . . . . . Part Schematics Acquired . | . . . . . Parts Built . | . . . . . Authchips . | . . . . . Time . | . . . . . Total Part Build Rating . | . . . . . Parts Repaired . | . . . . . Time . | . . . . . Parts Recycled . | . . . . . Recycled Matter . | . . . . . Retrieved Matter . | . . . . . Retrieved Components . | . . . . . Parts Scanalyzed . | . . . . . Part Schematics Acquired . | . . . . . Parts Damaged . | . . . . . Bothacking | -11 -10 -9 -8 -7 ------------ Run | Yrd Mat Mat Mat Fac Used RIF Installer . | . . . . . Robots Hacked . | . . . . . Non-combat . | . . . . . Combat . | . . . . . Robot Hacks Applied . | . . . . . Relay Couplers Released . | . . . . . Fabnet Peak Effective % . | . . . . . Robots Rewired . | . . . . . Allies Hacked . | . . . . . Hacks Repelled . | . . . . . Allies | -11 -10 -9 -8 -7 -------- Run | Yrd Mat Mat Mat Fac Total Allies . | . . . . . Largest Group . | . . . . . Highest-Rated Group . | . . . . . Highest-Rated Ally . | . . . . . Total Orders . | . . . . . Ally Attacks . | . . . . . Total Damage . | . . . . . Kills . | . . . . . Allies Corrupted . | . . . . . Allies Melted . | . . . . . Intel | -11 -10 -9 -8 -7 ------- Run | Yrd Mat Mat Mat Fac Robot Analysis Total . | . . . . . Derelict Logs Recovered . | . . . . . Drone Launches . | . . . . . Drone Recoveries . | . . . . . Exploration | -11 -10 -9 -8 -7 ------------- Run | Yrd Mat Mat Mat Fac Turns Passed 3963 | 74 228 1442 1213 1006 Spaces Moved 1309 | 61 169 602 267 210 Core 13 | 12 . . . 1 Treads 573 | . . 139 229 205 Legs 5 | . . . 5 . Wheels 709 | 49 169 463 28 . Hover . | . . . . . Flight 9 | . . . 5 4 Fastest Speed 50 | 50 100 130 145 325 Average Speed 250 | 95 125 195 395 371 Slowest Speed 1800 | 100 175 320 1735 1800 Overloaded Moves . | . . . . . Propulsion Burnouts . | . . . . . Robots Hopped . | . . . . . Cave-ins Triggered . | . . . . . Exploration Rate (%) 18 | 3 30 34 20 5 Regions Visited 4 Branch Regions . Pre-discovered Areas . | . . . . . Known Exits Taken . | . . . . . Unknown Exits Taken 4 | 1 1 1 1 . Scrap Searched . | . . . . . Spaces Dug . | . . . . . Terrain Destroyed 246 | . . 181 9 56 Melee . | . . . . . Projectile . | . . . . . AOE 246 | . . 181 9 56 Terrain Rammed . | . . . . . Walls Destroyed . | . . . . . Machines Disabled . | . . . . . Actions | -11 -10 -9 -8 -7 --------- Run | Yrd Mat Mat Mat Fac Total 1676 | 77 186 737 348 328 Wait 1 | . . . . 1 Move 1305 | 60 168 601 266 210 Hop . | . . . . . Pick Up 85 | 11 11 22 23 18 Fast Attach . | . . . . . Attach 67 | 6 3 14 22 22 Detach 2 | . . 1 . 1 Swap 18 | . . 8 3 7 Drop 12 | . 1 2 2 7 Fire 98 | . . 40 27 31 Melee 83 | . . 49 3 31 Ram 5 | . 3 . 2 . Kick . | . . . . . Crush . | . . . . . Escape Stasis . | . . . . . Rewire . | . . . . . Trap . | . . . . . Miscellaneous . | . . . . . Route ------- -11/Scrapyard -10/Materials -9/Materials (discovered 2 exits: [*Mat] / [*Min]) -8/Materials -7/Factory History --------- Turn | Location | Event 21 | -11/Scrapyard | Discovered new exit (range 16) 75 | -11/Scrapyard | Entered Materials 211 | -10/Materials | Discovered new exit (range 9) 303 | -10/Materials | Entered another Materials area 303 | -9/Materials | Evolved 2 slots: Power x1, Utility x1 314 | -9/Materials | Build established: Mutant 732 | -9/Materials | Lost 4 parts (1p1n2u) 1332 | -9/Materials | Discovered new exit (range 13) 1551 | -9/Materials | Core integrity fell below 50% 1732 | -9/Materials | Discovered new exit (range 3) 1745 | -9/Materials | Entered another Materials area 1745 | -8/Materials | Evolved 2 slots: Utility x1, Weapon x1 1953 | -8/Materials | Core integrity fell below 50% 1992 | -8/Materials | Lost 17 parts (3p4n4u6w) 2407 | -8/Materials | Build established: Scavenger-Tank 2555 | -8/Materials | Discovered new exit (range 10) 2608 | -8/Materials | Core integrity fell below 20% 2958 | -8/Materials | Entered Factory 2958 | -7/Factory | Evolved 2 slots: Utility x1, Weapon x1 3156 | -7/Factory | System corruption reached 10% 3186 | -7/Factory | Lost 3 parts (3u) 3482 | -7/Factory | Build established: Scavenger-Mutant 3817 | -7/Factory | Build established: Mutant 3924 | -7/Factory | Lost 3 parts (1p2w) 3941 | -7/Factory | Cargo convoy interrupted 3954 | -7/Factory | Core integrity fell below 50% 3963 | -7/Factory | Core integrity fell below 20% 3964 | -7/Factory | Destroyed by H-55 Commando with Gauss Rifle Last Messages --------------- 03955_ Slug penetrates Construction Platform. 03955_ Construction Platform disabled. 03957_ R-06 Scavenger collects Wheel. 03958_ Penetrated by Slug. 03958_ Rnf. Deuterium Engine destroyed. 03958_ P-60 Hacker resets R-06 Scavenger, system corruption cleaned. 03959_ M-28 Smith repairs M-28 Smith. 03959_ Slug penetrates R-06 Scavenger. 03959_ R-06 Scavenger suffers critical hit (Destroy). 03959_ R-06 Scavenger destroyed. 03960_ Adv. Assault Cannon destroyed. 03961_ System corrupted: Hammer rejected. 03961_ Slug penetrates Wall. 03961_ M-28 Smith repairs H-55 Commando. 03962_ Slug penetrates Wall. 03962_ Penetrated by Slug. 03963_ M-28 Smith fits Backup Propulsion III on M-28 Smith. 03963_ R-06 Scavenger collects Wheel. 03964_ Slug penetrates Wall. 03964_ Critical hit (Burn: +37). Map ----- +----------------------------------------------------+ | ?????????????????????????????????????????????????? | | ?????????????????????????????????????????????????? | | ?????????????????????????????????????????????????? | | ?????????????????????????????????????????????????? | | ?????????????????????????????????????????????????? | | ?????????????????????????????????????????????????? | | ?????????????????????????????????????????????????? | | ?????????????????????????????????????????????????? | | ?????????????????????????????????????????????????? | | ?????????????????????????????????????????????????? | | ?????????????????????????????????????????????????? | | ?????????????????????????????????????????????????? | | ?????????????????????????????????????????????????? | | ?????????????????????????????????? ??????????????? | | ????????????????????????????????? ?????????????? | | ????????????????????????#######? !??????????????? | | ???????????????????????? #? ??????????????? | | ???????????????????????? i # ""??????????????? | | ??????????? ??????????? + ""??????????????? | | ??????????? ?????????? ""??????????????? | | ?????????? ????????? A """?????????????? | | ?????????? ######### # # ""?????????????? | | ????????# # %! """?????????????? | | ????????# r """" ?????????? | | ???????? ] # ??????????? | | ???????# h @ # ??????????????? | | ??????? mh *%= == # #????????????????? | | ?????? mx = =%! # #?????????????????? | | ?????? " Y hp ! # "#?????????????????? | | ?????? % % hp # ##?????????????????? | | ?????? =% # ##?????????????????? | | ???????# %x # #####??????????????? | | ???????? #+#############??????? | | ????????##?? # # # ######## | | ??????????? ?#?# # # =! | | ?????????? ??????# # # ! "" | | ?????????????????# w + # "" | | ?????????????????############ """ """ # = R | | ????????????????????????????# """"" """"" # "" | | ????????????????????????????# """"" """"" # """ | | ????????????????????????????# # """ | | ????????????????????????????##########+#### """ | | ???????????????????????????######## # | | ???????????????????????????+ ##+##### | | ???????????????????????????# | | ???????????????????????????+ """ | | ???????????????????????????# """"" | | ???????????????????????????# """"" ##+##### | | ???????????????????????????# ?? ## | | ?????????????????????????????? """ ## """ | +----------------------------------------------------+ Best States ------------- Heat Dissipation 38 Energy Generation 25 Energy Capacity 630 Matter Stores 400 Matter Capacity 400 Sight Range 16 Terrain Scan Density 10 Armor Coverage 450 Evasion (%) 40 Launcher Accuracy 40 Recoil Reduction 6 Item Schematics ----------------- None Robot Schematics ------------------ None Fabricated ------------ Nothing Alien Tech Used ----------------- None Achievements -------------- None Challenges ------------ None Game ------ Seed ShieldDecoderRailgun Manual? 0 Play Time 00:38:36 Cumulative 9.9 hours Start 2024.10.18 @ 22:47:05 End 2024.10.18 @ 23:23:41 Sessions 1 Manual Loads 0 Difficulty Rogue Special Mode None Game No. 14 Rogue 14 Adventurer 0 Explorer 0 Win Type - Total 0 Types 0/0/0/0/0/0/0/0/0 Lore% 3 Gallery% 13 Achievement% 10 Wizard Run 0 Options --------- Layout 0 ASCII 0 Keyboard 0 Movement Arrows Keybinds 0 Fullscreen 2 Font 18/SmallcapsGlow Map View 38x25 Zoom Use 100% Tactical HUD 1 Map Filters NONE Filters NONE Steam 1 RUN: 31d28382-c078-47e1-9ac6-91ac3962aadd